Cogmind - Beta 13 X1 @@@ ROGUE MODE // 2023.08.27 @ 19:43:23 Player: VR-DUX Result: Destroyed by G-47 Trooper with Particle Gun Performance ------------- Evolutions (2) 1000 Regions Visited (5) 1000 Robots Destroyed (83) 415 Value Destroyed (2074) 2074 Prototype IDs (26) 520 Alien Tech Used (0) 0 Bonus (471) 471 TOTAL SCORE: 5480 Bonus ------- High Alert Combat Kills 171 Aligned with FarCom 300 Cogmind --------- Core Integrity 0/550 Matter 58/300 Energy 14/100 System Corruption 0% Temperature Cool (18) Movement Core (50) Location -8/Materials Parts ------- > --- POWER (1) -------- (None) > --- PROPULSION (4) --- (None) > --- UTILITY (4) ------ (None) > --- WEAPON (2) ------- (None) > --- INVENTORY (5) ---- Heavy Armor Plating Component Analysis Suite Firepult Peak State ------------ > --- POWER ------------ Heavy Ion Engine > --- PROPULSION ------- Light Treads Light Treads Light Treads Armored Treads > --- UTILITY ---------- Huge Storage Unit Signal Interpreter Hardened Medium Armor Plating System Restoration Module > --- WEAPON ----------- Bore Cannon Rocket Array > --- INVENTORY -------- Ion Engine Light Treads Cesium-ion Thruster Improved VTOL Module Improved Heat Sink Improved Heat Sink Medium Storage Unit Large Storage Unit Huge Storage Unit High-capacity Matter Pod Advanced Weight Redist. System Machine Analyzer Utility Shielding Heavy Armor Plating Component Analysis Suite Field Laser Light EM Pulse Cannon Firepult Autogun Light Cannon Flak Cannon Rocket Launcher Improved Grenade Launcher [Rating: 35] Favorites ----------- Power Light Ion Engine Engine Light Ion Engine Propulsion Armored Wheel Treads Light Treads Leg Aluminum Leg Wheel Armored Wheel Flight Unit Flight Unit Utility Huge Storage Unit Device Improved Heat Sink Storage Huge Storage Unit Processor Signal Interpreter Protection Medium Armor Plating Weapon Light Cannon Energy Gun EM Pulse Gun Energy Cannon Light EM Pulse Cannon Ballistic Gun Heavy Assault Rifle Ballistic Cannon Light Cannon Launcher Rocket Array Special Weapon Mining Laser Build | -11 -10 -10 -10 -9 -8 ------- Run | Jun Mat Min Exi Min Mat Slots Evolved 4 | . . . . . 4 Power . | . . . . . . Propulsion 2 | . . . . . 2 Utility 2 | . . . . . 2 Weapon . | . . . . . . Parts Attached 82 | . 22 5 8 3 44 Power 9 | . 3 1 1 . 4 Engine 9 | . 3 1 1 . 4 Core . | . . . . . . Reactor . | . . . . . . Propulsion 25 | . 5 1 6 . 13 Treads 8 | . 3 . . . 5 Leg . | . . . . . . Wheel 14 | . 2 1 6 . 5 Hover . | . . . . . . Flight 3 | . . . . . 3 Utility 19 | . 6 . 1 1 11 Device 7 | . 2 . . . 5 Storage 3 | . 1 . . . 2 Processor 2 | . 1 . . 1 . Hackware . | . . . . . . Protection 7 | . 2 . 1 . 4 Artifact . | . . . . . . Weapon 29 | . 8 3 . 2 16 Energy Gun 3 | . 2 . . . 1 Energy Cannon 3 | . 2 . . . 1 Ballistic Gun 6 | . . 2 . . 4 Ballistic Cannon 8 | . 3 . . 1 4 Launcher 8 | . . 1 . 1 6 Special Weapon 1 | . 1 . . . . Impact Weapon . | . . . . . . Slashing Weapon . | . . . . . . Piercing Weapon . | . . . . . . Special Melee Weapon . | . . . . . . Unidentified Prototypes 3 | . . . . . 3 Parts Lost 11 | . 1 1 . . 9 Power 1 | . . . . . 1 Propulsion 3 | . . 1 . . 2 Utility 3 | . 1 . . . 2 Weapon 4 | . . . . . 4 Highest Loss Streak 3 | . 1 1 . . 3 To Critical Strikes . | . . . . . . Average Slot Usage (%) 92 | . 95 94 85 100 90 Engine 11 | . 14 14 14 14 8 Treads 11 | . 15 . . . 17 Wheel 18 | . 10 27 28 28 16 Device 3 | . 3 . . . 5 Storage 13 | . 15 14 14 14 10 Processor 6 | . . 14 4 12 8 Protection 4 | . 4 . 9 1 6 Energy Cannon 2 | . 4 9 . . . Ballistic Gun 4 | . . 7 14 9 2 Ballistic Cannon 8 | . 18 . . 4 6 Launcher 4 | . . . . 14 7 Special Weapon 1 | . 2 5 . . . Naked Turns 46 | . . . . . 46 Heaviest Build 114 | 13 95 89 93 96 114 Greatest Support 80 | 20 40 20 24 24 80 Greatest Overweight (x) 8 | . 4 8 4 3 4 Average Overweight (x) 2 | . 1 4 3 3 1 Largest Inventory Capacity 25 | 8 25 25 25 25 25 Average Capacity 21 | 8 15 25 25 25 24 Most Carried 25 | 6 23 25 25 25 25 Average Carried 19 | 6 10 23 24 24 23 Final Capacity 25 | 8 25 25 25 25 5 Final Carried 25 | 6 23 25 25 25 5 Class Distribution -------------------- 95% | Mutant 4% | Scavenger-Mutant Dominant Class ---------------- Mutant | -10/Materials Mutant | -10/Mines Mutant | -10/Exiles Mutant | -9/Mines Mutant | -8/Materials Resources | -11 -10 -10 -10 -9 -8 ----------- Run | Jun Mat Min Exi Min Mat Matter Collected 2209 | 200 655 84 70 179 1021 Remotely . | . . . . . . Salvage Created 2307 | . 663 205 . 210 1229 Parts 143 | . 42 12 . 11 78 Haulers Intercepted 3 | . 1 . . . 2 Recyclers Shooed 4 | . 1 . . 1 2 Parts Field Recycled . | . . . . . . Retrieved Matter . | . . . . . . Parts Self-Destructed . | . . . . . . Prevented . | . . . . . . Kills | -11 -10 -10 -10 -9 -8 ------- Run | Jun Mat Min Exi Min Mat Combat Hostiles Destroyed 51 | . 17 4 . 2 28 Guns 9 | . . 2 . . 7 Cannons 24 | . 17 2 . . 5 AOE 18 | . . . . 2 16 Classes Destroyed 13 | . 8 1 . 2 2 Worker 5 | . 1 . . . 4 Builder 7 | . . . . 3 4 Tunneler 1 | . 1 . . . . Hauler 3 | . 1 . . . 2 Recycler 6 | . 1 . . 1 4 Mechanic 1 | . . . . . 1 Operator 4 | . 3 . . . 1 Watcher 5 | . 3 . . . 2 Swarmer 14 | . 6 . . . 8 Grunt 26 | . 11 2 . 1 12 Duelist 1 | . . . . 1 . Sentry 8 | . . 2 . . 6 Specialist 2 | . . . . . 2 Best Kill Streak 13 | . 7 2 . 4 13 Combat Bots Only 6 | . 3 2 . 2 6 Max Kills in Single Turn 3 | . 2 1 . 2 3 Gunslinging . | . . . . . . Exploded 3 | . . . . 2 3 Melee . | . . . . . . Uniques/NPCs Destroyed . | . . . . . . Combat | -11 -10 -10 -10 -9 -8 -------- Run | Jun Mat Min Exi Min Mat Damage Taken 3259 | . 580 191 . . 2488 Core 613 | . 60 . . . 553 Absorbed by Shields . | . . . . . . Regen/Repaired (Parts) 195 | . . . . . 195 Core Remaining (%) 88 | 100 . . . 76 . Volleys Fired 252 | . 76 13 . 16 147 Largest 2 | . 2 2 . 1 2 Hottest 106 | . 106 76 . 30 67 Shots Fired 323 | . 134 19 . 16 154 Gun 108 | . 7 13 . 13 75 Cannon 180 | . 126 6 . . 48 Launcher 34 | . . . . 3 31 Special 1 | . 1 . . . . Kinetic 240 | . 110 13 . 13 104 Thermal 8 | . 8 . . . . Explosive 34 | . . . . 3 31 Electromagnetic 41 | . 16 6 . . 19 Robot Hit Streak 14 | . 10 8 . 14 10 Robot Miss Streak 5 | . 4 1 . 1 5 Penetration Max . | . . . . . . Secondary Targets . | . . . . . . Shots Hit Robots 174 | . 71 14 . 9 80 Core Hits 127 | . 29 6 . 8 84 Critical Kills 6 | . . . . . 6 Critical Parts Destroyed 6 | . . . . . 6 Critical Strikes 15 | . 3 . . . 12 Destroy 12 | . . . . . 12 Blast 3 | . 3 . . . . Melee Attacks . | . . . . . . Impact . | . . . . . . Slashing . | . . . . . . Piercing . | . . . . . . Sneak Attacks . | . . . . . . Combat Hostiles . | . . . . . . Follow-up Attacks . | . . . . . . Damage Inflicted 5156 | . 1408 237 . 254 3257 Guns 983 | . 50 129 . 117 687 Cannons 1927 | . 1320 108 . . 499 Explosions 2237 | . 38 . . 137 2062 Melee . | . . . . . . Ramming 9 | . . . . . 9 Kinetic 2410 | . 1084 129 . 117 1080 Thermal 133 | . 88 . . . 45 Explosive 2154 | . . . . 137 2017 Electromagnetic 450 | . 236 108 . . 106 Impact . | . . . . . . Slashing . | . . . . . . Piercing . | . . . . . . Highest Corruption 2 | . . . . . 2 Average Corruption 1 | . . . . . 1 Corruption Purged 2 | . . . . . 2 Corruption Blocked . | . . . . . . Effects 6 | . . . . . 6 Message Errors 2 | . . . . . 2 Matter Fused 2 | . . . . . 2 Energy Discharges 2 | . . . . . 2 Overload Shots . | . . . . . . Overflow Damage 87 | . 12 . . . 75 Projectiles 12 | . 12 . . . . Explosions 75 | . . . . . 75 Melee . | . . . . . . Knockbacks 21 | . 13 . . . 8 Impact . | . . . . . . Kinetic 18 | . 11 . . . 7 Secondary 3 | . 2 . . . 1 Self-Inflicted Damage 36 | . . . . . 36 Shots 2 | . . . . . 2 Rammed 4 | . . . . . 4 Targets Rammed 4 | . . . . . 4 Kicked . | . . . . . . Crushed . | . . . . . . Highest Temperature 378 | . 378 63 . . 271 Average Temperature 67 | . 70 29 . . 68 Received Heat Transfer 1515 | . 195 60 . . 1260 Effects 4 | . 4 . . . . Shutdowns 1 | . 1 . . . . Energy Bleed 1 | . 1 . . . . Interference 2 | . 2 . . . . Siege Activations . | . . . . . . Robots Corrupted . | . . . . . . Combat Hostiles . | . . . . . . Parts Fried . | . . . . . . Impact Corruptions . | . . . . . . Robots Melted . | . . . . . . Combat Hostiles . | . . . . . . Parts Melted . | . . . . . . Heat Transferred 198 | . 198 . . . . Parts Sabotaged . | . . . . . . Parts Stolen . | . . . . . . Parts Stripped . | . . . . . . Power Chain Reactions 2 | . 1 . . . 1 Missiles Intercepted . | . . . . . . Alert | -11 -10 -10 -10 -9 -8 ------- Run | Jun Mat Min Exi Min Mat Peak Influence 742 | . 265 150 . 105 742 Initial 70 | . . 70 . . . Average 276 | . 136 91 . 24 486 Maximum Alert Level 3 | . 1 . . . 3 Low Security (%) 52 | 100 79 100 . 100 9 Level 1 16 | . 20 . . . 20 Level 2 29 | . . . . . 64 Level 3 2 | . . . . . 4 Level 4 . | . . . . . . Level 5 . | . . . . . . High Security . | . . . . . . Max Security . | . . . . . . Squads Dispatched 12 | . 5 . . . 7 Investigation 4 | . 3 . . . 1 Extermination . | . . . . . . Reinforcement 8 | . 2 . . . 6 Assault . | . . . . . . Garrison . | . . . . . . Intercept . | . . . . . . Searches Triggered . | . . . . . . Construction Impeded 2 | . . . . . 2 Haulers Reinforced . | . . . . . . Active Scanning Responses . | . . . . . . Cargo Convoy Interrupts . | . . . . . . Stealth | -11 -10 -10 -10 -9 -8 --------- Run | Jun Mat Min Exi Min Mat Distress Signals 6 | . 2 . . . 4 Communications Jammed . | . . . . . . Distress Signals . | . . . . . . Times Spotted 75 | . 25 4 . 2 44 Peak Tracking Total 8 | . 3 2 . . 8 Tactical Retreats 2 | . . . . . 2 Traps | -11 -10 -10 -10 -9 -8 ------- Run | Jun Mat Min Exi Min Mat Traps Triggered 1 | . 1 . . . . Indirectly . | . . . . . . Trap Hack Attempts . | . . . . . . Triggered . | . . . . . . Disarmed . | . . . . . . Reprogrammed . | . . . . . . Reused . | . . . . . . Traps Extracted . | . . . . . . Installed . | . . . . . . Triggered . | . . . . . . Machines | -11 -10 -10 -10 -9 -8 ---------- Run | Jun Mat Min Exi Min Mat Machines Disabled 8 | . 2 . . . 6 Max in Single Turn 1 | . 1 . . . 1 Garrison Access 1 | . . . . . 1 Machines Repaired . | . . . . . . Machines Sabotaged . | . . . . . . Overloaded Fab Kills . | . . . . . . Hacking | -11 -10 -10 -10 -9 -8 --------- Run | Jun Mat Min Exi Min Mat Machines Accessed 15 | . 5 . 2 . 8 Terminals 8 | . 4 . . . 4 Fabricators . | . . . . . . Repair Stations 2 | . . . . . 2 Recycling Units 2 | . 1 . . . 1 Scanalyzers . | . . . . . . Garrison Access 1 | . . . . . 1 Total Hacks 36 | . 16 . 2 . 18 Successful 17 | . 4 . 2 . 11 Failed 19 | . 12 . . . 7 Catastrophic 5 | . 2 . . . 3 Database Lockouts . | . . . . . . Manual 25 | . 17 . 1 . 7 Terminals 19 | . 13 . . . 6 Fabricators . | . . . . . . Repair Stations 10 | . . . . . 10 Recycling Units 4 | . 3 . . . 1 Scanalyzers . | . . . . . . Garrison Access 1 | . . . . . 1 Terminal Hacks 6 | . 3 . 2 . 1 Record 1 | . . . 1 . . Robot Analysis 4 | . 3 . . . 1 Derelict Proto ID Bank 1 | . . . 1 . . Fabricator Hacks . | . . . . . . Repair Station Hacks 8 | . . . . . 8 Scan Component 4 | . . . . . 4 Repair 4 | . . . . . 4 Recycling Unit Hacks 2 | . 1 . . . 1 Retrieve Components 2 | . 1 . . . 1 Scanalyzer . | . . . . . . Garrison Access Hacks 1 | . . . . . 1 Seal Access 1 | . . . . . 1 Unauthorized Hacks . | . . . . . . Terminals . | . . . . . . Fabricators . | . . . . . . Repair Stations . | . . . . . . Recycling Units . | . . . . . . Scanalyzers . | . . . . . . Garrison Access . | . . . . . . Data Cores Recovered . | . . . . . . Used . | . . . . . . Hacking Detections 11 | . 5 . . . 6 Full Trace Events 6 | . 3 . . . 3 Feedback Events . | . . . . . . Feedback Blocked . | . . . . . . Robot Schematics Acquired . | . . . . . . Robots Built . | . . . . . . Authchips . | . . . . . . Time . | . . . . . . Total Robot Build Rating . | . . . . . . Part Schematics Acquired . | . . . . . . Parts Built . | . . . . . . Authchips . | . . . . . . Time . | . . . . . . Total Part Build Rating . | . . . . . . Parts Repaired 4 | . . . . . 4 Time 140 | . . . . . 140 Parts Recycled . | . . . . . . Recycled Matter . | . . . . . . Retrieved Matter . | . . . . . . Retrieved Components 18 | . 9 . . . 9 Parts Scanalyzed . | . . . . . . Part Schematics Acquired . | . . . . . . Parts Damaged . | . . . . . . Bothacking | -11 -10 -10 -10 -9 -8 ------------ Run | Jun Mat Min Exi Min Mat Used RIF Installer . | . . . . . . Robots Hacked . | . . . . . . Non-combat . | . . . . . . Combat . | . . . . . . Robot Hacks Applied . | . . . . . . Relay Couplers Released . | . . . . . . Fabnet Peak Effective % . | . . . . . . Robots Rewired . | . . . . . . Allies Hacked . | . . . . . . Hacks Repelled . | . . . . . . Allies | -11 -10 -10 -10 -9 -8 -------- Run | Jun Mat Min Exi Min Mat Total Allies . | . . . . . . Largest Group . | . . . . . . Highest-Rated Group . | . . . . . . Highest-Rated Ally . | . . . . . . Total Orders . | . . . . . . Ally Attacks . | . . . . . . Total Damage . | . . . . . . Kills . | . . . . . . Allies Corrupted . | . . . . . . Allies Melted . | . . . . . . Intel | -11 -10 -10 -10 -9 -8 ------- Run | Jun Mat Min Exi Min Mat Robot Analysis Total 4 | . 3 . . . 1 Derelict Logs Recovered 3 | . . 2 . 1 . Drone Launches . | . . . . . . Drone Recoveries . | . . . . . . Exploration | -11 -10 -10 -10 -9 -8 ------------- Run | Jun Mat Min Exi Min Mat Turns Passed 5509 | 2 1594 452 651 612 2198 Spaces Moved 3097 | 2 861 270 463 413 1088 Core 90 | . . . . . 90 Treads 728 | . 404 . . . 324 Legs 94 | 2 92 . . . . Wheels 2155 | . 365 270 463 413 644 Hover . | . . . . . . Flight 30 | . . . . . 30 Fastest Speed 35 | 120 120 140 135 135 35 Average Speed 146 | 120 153 142 136 135 149 Slowest Speed 320 | 120 320 200 140 135 242 Overloaded Moves . | . . . . . . Propulsion Burnouts . | . . . . . . Robots Hopped . | . . . . . . Cave-ins Triggered . | . . . . . . Exploration Rate (%) 56 | 2 96 45 73 66 58 Regions Visited 5 Branch Regions 3 Pre-discovered Areas 3 | . . . 1 2 . Known Exits Taken 3 | . 1 1 . 1 . Unknown Exits Taken 2 | 1 . . 1 . . Scrap Searched 4 | . . 1 . 3 . Spaces Dug 64 | . 1 . . . 63 Terrain Destroyed 316 | . 3 . . 26 287 Melee . | . . . . . . Projectile 20 | . 1 . . . 19 AOE 296 | . 2 . . 26 268 Terrain Rammed . | . . . . . . Walls Destroyed . | . . . . . . Machines Disabled . | . . . . . . Actions | -11 -10 -10 -10 -9 -8 --------- Run | Jun Mat Min Exi Min Mat Total 3760 | 1 998 318 483 452 1508 Wait 220 | . 9 23 . 12 176 Move 3092 | 1 860 269 462 412 1088 Hop . | . . . . . . Pick Up 54 | . 18 5 6 5 20 Fast Attach 23 | . 7 . . . 16 Attach 24 | . 3 1 6 1 13 Detach 6 | . 3 . . . 3 Swap 35 | . 12 4 2 2 15 Drop 50 | . 10 3 7 4 26 Fire 252 | . 76 13 . 16 147 Melee . | . . . . . . Ram 4 | . . . . . 4 Kick . | . . . . . . Crush . | . . . . . . Escape Stasis . | . . . . . . Rewire . | . . . . . . Trap . | . . . . . . Miscellaneous . | . . . . . . Route ------- -11/Junkyard -10/Materials (discovered 4 exits: *Mat x3 / *Min) -10/Mines (discovered 4 exits: *Mat x2 / *Exi / [*Sub]) -10/Exiles -9/Mines (discovered 2 exits: *Mat x2) -8/Materials (discovered 1 exit: *Fac) History --------- Turn | Location | Event 1 | -11/Junkyard | Discovered new exit (range 1) 3 | -11/Junkyard | Entered Materials 308 | -10/Materials | Build established: Mutant 332 | -10/Materials | Discovered new exit (range 16) 359 | -10/Materials | Discovered new exit (range 11) 805 | -10/Materials | Discovered new exit (range 16) 918 | -10/Materials | Discovered new exit (range 13) 1000 | -10/Materials | Derelicts attacked the area 1589 | -10/Materials | Identified exit to Mines 1597 | -10/Materials | Entered Mines 1646 | -10/Mines | Discovered new exit (range 5) 1766 | -10/Mines | Discovered new exit (range 4) 1824 | -10/Mines | Identified exit to Materials 1838 | -10/Mines | Learned Materials trap positions 1865 | -10/Mines | Joined a pair of Derelicts in attacking an 0b10 outpost 2044 | -10/Mines | Deemed a non-threat by the Exiles lab entrance 2044 | -10/Mines | Discovered new exit (range 5) 2048 | -10/Mines | Identified exit to Exiles 2049 | -10/Mines | Entered Exiles 2087 | -10/Exiles | Met 8R-AWN 2108 | -10/Exiles | Met EX-HEX 2147 | -10/Exiles | Met EX-BIN 2219 | -10/Exiles | Aligned with FarCom system 2220 | -10/Exiles | Given EX-Vault access code 2252 | -10/Exiles | Opened EX-Vault 2298 | -10/Exiles | Found Firepult 2330 | -10/Exiles | Warned to stay clear of 0b10 Research branches 2369 | -10/Exiles | Met EX-DEC 2377 | -10/Exiles | Learned location of Zion (-7) 2688 | -10/Exiles | Discovered new exit (range 10) 2700 | -10/Exiles | Left Exiles lab with Firepult 2700 | -10/Exiles | Entered Mines 2701 | -9/Mines | Learned location of Storage (-9) 2747 | -9/Mines | Discovered new exit (range 8) 2767 | -9/Mines | Identified exit to Materials 2784 | -9/Mines | Discovered exit to Materials (range 5) 2812 | -9/Mines | Received a Rocket Launcher from a helpful Derelict 3117 | -9/Mines | A weapon hastily lodged in a ceiling crevice suddenly fell to the ground 3312 | -9/Mines | Entered Materials 3312 | -8/Materials | Evolved 4 slots: Propulsion x2, Utility x2 3313 | -8/Materials | Loaded intel: 24 trap records 3721 | -8/Materials | Found Prototype Launcher 3721 | -8/Materials | Identified Rocket Array 3982 | -8/Materials | Repaired Arm. Wheel? 4139 | -8/Materials | Repaired Arm. Wheel 4392 | -8/Materials | Found Rocket Array 4672 | -8/Materials | Repaired Imp. Grenade Launcher 4711 | -8/Materials | Repaired Imp. Heat Sink 4990 | -8/Materials | Discovered new exit (range 15) 5053 | -8/Materials | Identified exit to Factory 5419 | -8/Materials | Released all parts (8) 5424 | -8/Materials | Core integrity fell below 50% 5469 | -8/Materials | Core integrity fell below 20% 5503 | -8/Materials | Lost 3 parts (1p1n1w) 5510 | -8/Materials | Destroyed by G-47 Trooper with Particle Gun Last Messages --------------- 05438_ Slammed into K-01 Serf. 05445_ Acquired Flight Unit. 05447_ Acquired 12 matter. 05448_ Acquired Ion Engine. 05456_ Acquired Lgt. Assault Rifle. 05460_ Flight Unit destroyed. 05470_ Ion Engine destroyed. 05470_ Critical hit (Burn: +37). 05472_ Lgt. Assault Rifle destroyed. 05474_ Acquired 8 matter. 05475_ Acquired 1 matter. 05476_ Slammed into K-01 Serf. 05478_ Acquired 57 matter. 05491_ ALERT: Suspicious intruders detected, dispatching Cutter reinforcements to area. 05492_ Acquired Adv. Weight Redist. System. 05497_ Acquired Cesium-ion Thruster. 05508_ G-47 Trooper destroyed. 05510_ Dropped Cesium-ion Thruster. 05510_ Dropped Adv. Weight Redist. System. Map ----- +----------------------------------------------------+ | | | | | | | | | | | | | | | | | | | | | | | | | | | | | | | ??????????????????????????????????#############??? | | ?????????????????????????????????# """ """ #??? | | ?????????????????????????????????# """ """ ! #??? | | ?????????????????????????????????? """ """ #??? | | ???????????????????????????????????? ????? | | ??????????###################????????? ??????? | | ??????????# ^ ^ # #????????###+###??#### | | ??????????#^""""""" # ########## #??# | | ??????????# """"""" # [g l ####### | | ??????????# """"""" /g%= g g g | | ??????????# """"""" # @ g o ######/ | | ??????????#^""""""" # ########## #?# | | ??????????# ^ ^ # #????????#######?# "" | | ??????????# #########????????????????# "" | | ??????????###########????????????????????????# """ | | ????????????????????????????H?########???????# | | ??????????????????????????????# [ ?????## | | ????????????????????????????c?# ????####### | | ????????????????????????????c?# ???# ## | | ????????????????????????????c?# = * ########## | | ??????????????????????????????# + | | ??????????????????????????#???# ## ##+#### | | ??????????????????????????# ??# ?# ## | | ??????????????????????????# ?# ??# ## | | ??????????????????????????+ #####+###### ## T" | | ??????????????????????????# cc # | | ??????????????????????????# # = | | ??????????????????????????# # ]* | | ??????????????????????????# #### #####+####### | | ?????????????????????????????????# # /=! | | ???????????????????????????^^^???# # """ #### | | ???????????????????????????^^^???# #! """ #?#* | | ?????????????????????????????????# # """ #?## | | ?????????????????????????????????# # #?## | | ?????????????????????????????????# !# #?# | +----------------------------------------------------+ Best States ------------- Heat Dissipation 59 Energy Generation 14 Energy Capacity 280 Matter Stores 300 Matter Capacity 500 Sight Range 16 Terrain Scan Density 10 Additional Mass Support 9 Armor Coverage 225 Evasion (%) 63 Recoil Reduction 4 Item Schematics ----------------- None Robot Schematics ------------------ None Fabricated ------------ Nothing Alien Tech Used ----------------- None Achievements -------------- None Challenges ------------ None Game ------ Seed XenonMiniFacilitator Manual? 0 Play Time 00:59:28 Cumulative 74.6 hours Start 2023.08.27 @ 18:27:23 End 2023.08.27 @ 19:43:23 Sessions 1 Manual Loads 0 Difficulty Rogue Special Mode None Game No. 65 Rogue 65 Adventurer 0 Explorer 0 Win Type - Total 1 Types 1/0/0/0/0/0/0/0/0 Lore% 41 Gallery% 34 Achievement% 37 Wizard Run 0 Options --------- ASCII 0 Keyboard 0 Movement Mouse Keybinds 0 Fullscreen 1 Font 16/SmallcapsGlow Map View 84x54 Tactical HUD 1 Map Filters NONE Filters NONE Steam 1 RUN: 60d8b240-34fb-4541-b399-da0cd5d6cd3d